bitfinex-derivatives/quotes_SOLF0:USTF0_20260213
["timestamp","ask_amount","ask_price","bid_price","bid_amount"]
[1771005118237,10.6732,84.387,84.344,10.6785]
[1771005119244,3.88940347,84.369,84.327,10.6806]
[1771005119443,3.88940347,84.369,84.322,3.85630372]
[1771005120748,3.88940347,84.369,84.333,10.6799]
[1771005121243,10.6732,84.387,84.336,3.91554315]
[1771005121448,14.38962267,84.387,84.336,3.91554315]
[1771005121949,10.6739,84.381,84.343,10.6786]
[1771005122651,3.71642267,84.373,84.334,10.6797]
[1771005122945,3.71642267,84.373,84.321,3.91554315]
[1771005123849,10.6759,84.365,84.325,10.6809]
[1771005124044,3.71642267,84.364,84.325,10.6809]
[1771005124449,3.71642267,84.379,84.335,3.91554315]
[1771005124646,3.71642267,84.379,84.32,3.91554315]
[1771005126751,10.6743,84.378,84.339,10.6792]
[1771005127654,3.71642267,84.393,84.348,3.91554315]
[1771005127950,3.71642267,84.408,84.348,3.91554315]
[1771005128547,10.6714,84.401,84.361,10.6763]
[1771005128952,3.71642267,84.398,84.348,3.91554315]
[1771005129649,8.68593112,84.4,84.355,14.59264315]
[1771005129953,3.71642267,84.414,84.356,3.91554315]
[1771005131553,10.6719,84.397,84.357,10.6768]
[1771005131754,3.71642267,84.414,84.356,3.91554315]
[1771005132958,10.6729,84.389,84.348,10.678]
[1771005133956,10.6738,84.382,84.341,14.59444315]
[1771005134257,3.71642267,84.399,84.341,3.91554315]
[1771005134452,10.6736,84.383,84.341,3.91554315]
[1771005134645,14.39002267,84.383,84.341,3.91554315]
[1771005135058,3.71642267,84.377,84.326,3.91554315]
[1771005135658,3.71642267,84.377,84.282,3.91554315]
[1771005136047,10.6768,84.358,84.311,3.91554315]
[1771005136255,12.40235379,84.36,84.311,3.91554315]
[1771005136451,3.71642267,84.359,84.282,3.91554315]
[1771005137752,10.6776,84.352,84.307,10.6832]
[1771005138258,14.39402267,84.352,84.307,10.6832]
[1771005138458,10.6783,84.346,84.307,10.6832]
[1771005140056,3.71642267,84.351,84.307,10.6832]
[1771005140560,10.6782,84.347,84.299,10.6841]
[1771005140758,10.6782,84.347,84.3,3.91554315]
[1771005141760,10.6782,84.347,84.304,10.6835]
[1771005141959,3.71642267,84.351,84.304,10.6835]
[1771005144858,3.24253453,84.34,84.304,10.6835]
[1771005145057,3.24253453,84.34,84.309,10.6829]
[1771005145858,3.24253453,84.35,84.309,10.6829]
[1771005146158,3.24253453,84.35,84.312,14.59804315]
[1771005146860,3.24213489,84.35,84.312,14.59804315]
[1771005147054,3.24213489,84.35,84.312,3.91554315]
[1771005148563,10.6793,84.339,84.298,3.91554315]
[1771005149462,10.6793,84.339,84.299,10.6842]
[1771005149860,10.6793,84.339,84.3,3.91554315]
[1771005150061,3.71642267,84.349,84.303,10.6837]
[1771005150560,3.71642267,84.349,84.303,14.59924315]
[1771005150861,3.71642267,84.349,84.304,4.01021408]
[1771005151057,10.6776,84.352,84.308,4.01021408]
[1771005152767,10.6776,84.352,84.309,14.69311408]
[1771005153361,10.6776,84.352,84.31,4.01021408]
[1771005153861,10.6784,84.346,84.31,4.01021408]
[1771005154764,10.6774,84.353,84.31,4.01021408]
[1771005155865,10.6774,84.353,84.311,10.6827]
[1771005158365,10.6782,84.347,84.31,4.01021408]
[1771005158961,10.6757,84.367,84.333,3.82761616]
[1771005159163,3.93011667,84.409,84.333,3.82761616]
[1771005159364,3.93011667,84.426,84.333,3.82761616]
[1771005159554,8.68483073,84.48,84.315,166.1666]
[1771005159555,3.93011667,84.442,84.387,3.82761616]
[1771005160159,3.93011667,84.459,84.387,3.82761616]
[1771005160561,3.93011667,84.459,84.412,3.82761616]
[1771005160763,179.89625783,84.496,84.412,3.82761616]
[1771005160764,3.93011667,84.475,84.412,3.82761616]
[1771005161062,3.93011667,84.495,84.412,3.82761616]
[1771005161258,3.93011667,84.513,84.433,3.82761616]
[1771005162567,3.93011667,84.512,84.448,3.82761616]
[1771005163167,10.6579,84.508,84.45,3.82761616]
[1771005164570,3.93011667,84.498,84.433,3.82761616]
[1771005165168,3.93011667,84.491,84.433,3.82761616]
[1771005165562,3.93011667,84.491,84.415,14.49711616]
[1771005166167,10.6623,84.473,84.415,3.82761616]
[1771005166364,3.93011667,84.472,84.415,3.82761616]
[1771005166571,3.93011667,84.472,84.392,3.82761616]
[1771005166769,3.93011667,84.447,84.392,3.82761616]
[1771005167363,10.6658,84.445,84.392,3.82761616]
[1771005167568,3.93011667,84.439,84.351,3.82761616]
[1771005168364,3.93011667,84.439,84.372,3.82761616]
[1771005169771,14.59671667,84.439,84.384,3.82761616]
[1771005170677,8.68483073,84.46,84.39,3.82761616]
[1771005170678,10.665,84.452,84.39,3.82761616]
[1771005171775,14.59511667,84.452,84.392,3.82761616]
[1771005174580,10.6657,84.446,84.392,3.82761616]
[1771005177978,10.6657,84.446,84.394,3.82761616]
[1771005178574,3.93011667,84.437,84.394,3.82761616]
[1771005178781,3.93011667,84.437,84.385,3.82761616]
[1771005179180,3.93011667,84.451,84.385,3.82761616]
[1771005180875,3.93011667,84.451,84.37,8.68483073]
[1771005180876,10.6656,84.447,84.39,3.94663761]
[1771005181076,3.95596986,84.479,84.39,3.94663761]
[1771005181381,3.95596986,84.447,84.39,3.94663761]
[1771005181590,3.95596986,84.447,84.371,3.94663761]
[1771005182387,3.95596986,84.423,84.356,3.94663761]
[1771005182586,3.95596986,84.419,84.356,3.94663761]
[1771005183792,10.6717,84.399,84.356,3.94663761]
[1771005184391,10.6706,84.407,84.358,3.94663761]
[1771005184692,14.62656986,84.407,84.358,3.94663761]
[1771005185987,10.6696,84.415,84.358,3.94663761]
[1771005186193,3.95596986,84.422,84.358,3.94663761]
[1771005187199,10.669,84.42,84.358,3.94663761]
[1771005187397,3.95596986,84.422,84.358,3.94663761]
[1771005188603,3.95596986,84.419,84.358,3.94663761]
[1771005188800,10.67,84.412,84.359,10.6766]
[1771005189497,3.95596986,84.4,84.343,3.94663761]
[1771005190289,8.68483073,84.42,84.353,3.94663761]
[1771005190595,3.95596986,84.415,84.353,3.94663761]
[1771005190794,10.67,84.412,84.37,3.94663761]
[1771005190994,3.95596986,84.429,84.37,3.94663761]
[1771005191698,10.6688,84.422,84.373,10.6748]
[1771005191899,10.6688,84.422,84.374,3.94663761]
[1771005192101,8.68483073,84.44,84.374,3.94663761]
[1771005192696,3.95596986,84.439,84.374,3.94663761]
[1771005192901,10.6678,84.429,84.376,14.62103761]
[1771005193294,14.62376986,84.429,84.376,14.62103761]
[1771005193492,14.62376986,84.429,84.383,10.6735]
[1771005193797,3.95596986,84.429,84.384,3.94663761]
[1771005194701,3.95596986,84.429,84.387,10.673]
[1771005195298,10.6689,84.421,84.384,3.94663761]
[1771005196396,10.6699,84.413,84.351,3.94663761]
[1771005197001,10.6707,84.406,84.361,14.62293761]
[1771005198698,3.95596986,84.405,84.351,10.6775]
[1771005199201,3.95596986,84.405,84.346,3.94663761]
[1771005200705,3.95596986,84.405,84.348,10.6779]
[1771005201197,10.674,84.381,84.333,10.6799]
[1771005201398,3.95596986,84.38,84.333,10.6799]
[1771005201900,3.95596986,84.38,84.331,3.94663761]
[1771005202106,10.6758,84.366,84.319,10.6817]
[1771005202306,3.95596986,84.379,84.319,3.94663761]
[1771005202507,10.6748,84.374,84.326,10.6808]
[1771005203701,10.6748,84.374,84.328,10.6805]
[1771005203901,3.95596986,84.397,84.33,8.68483073]
[1771005204107,3.95596986,84.397,84.331,3.94663761]
[1771005205707,10.6721,84.395,84.348,14.62463761]
[1771005205907,10.6721,84.395,84.348,3.94663761]
[1771005206408,3.95596986,84.397,84.349,10.6779]
[1771005206612,10.6712,84.402,84.35,3.94663761]
[1771005207714,10.6712,84.402,84.355,10.6771]
[1771005208613,3.95596986,84.397,84.355,10.6771]
[1771005208807,3.95596986,84.419,84.358,3.94663761]
[1771005209609,3.95596986,84.419,84.34,8.67183299]
[1771005209610,10.6697,84.414,84.368,3.94663761]
[1771005210214,3.95596986,84.413,84.368,3.94663761]
[1771005210515,3.95596986,84.411,84.353,3.94663761]
[1771005211409,3.95596986,84.411,84.369,3.84747785]
[1771005211715,10.6697,84.414,84.369,3.84747785]
[1771005212709,10.6697,84.414,84.371,10.675]
[1771005212915,10.6687,84.422,84.372,3.84747785]
[1771005213217,3.84042286,84.441,84.372,3.84747785]
[1771005213410,3.84042286,84.441,84.39,3.84747785]
[1771005213808,3.84042286,84.469,84.39,3.84747785]
[1771005214009,3.84042286,84.452,84.38,8.67183299]
[1771005214215,3.84042286,84.452,84.359,94.6]
[1771005214216,3.84042286,84.449,84.373,3.84747785]
[1771005214817,10.6679,84.428,84.373,3.84747785]
[1771005215111,3.84042286,84.428,84.373,3.84747785]
[1771005216719,3.84042286,84.428,84.39,10.6726]
[1771005219519,10.666,84.444,84.396,10.6719]
[1771005219920,3.79975226,84.443,84.396,10.6719]
[1771005220118,3.79975226,84.443,84.402,10.6711]
[1771005220822,10.6655,84.448,84.409,10.6703]
[1771005221021,3.79975226,84.457,84.409,10.6703]
[1771005221221,3.79975226,84.457,84.405,3.8680089]
[1771005222723,10.6645,84.455,84.415,10.6695]
[1771005223221,3.79975226,84.473,84.43,10.6676]
[1771005223423,3.79975226,84.526,84.441,3.8680089]
[1771005223724,3.79975226,84.526,84.421,165.9593]
[1771005223725,3.79975226,84.526,84.461,3.8680089]
[1771005223924,3.79975226,84.517,84.461,3.8680089]
[1771005224425,3.79975226,84.539,84.461,3.8680089]
[1771005224614,3.79975226,84.539,84.487,10.6604]
[1771005225626,10.6541,84.538,84.484,3.8680089]
[1771005225822,3.79975226,84.537,84.484,3.8680089]
[1771005226225,10.6543,84.536,84.484,3.8680089]
[1771005226517,3.79975226,84.535,84.484,3.8680089]
[1771005227227,3.79975226,84.535,84.484,14.5288089]
[1771005227523,3.79975226,84.535,84.485,3.8680089]
[1771005227922,3.79975226,84.535,84.489,10.6602]
[1771005228120,3.79975226,84.535,84.485,3.8680089]
[1771005229019,3.79975226,84.533,84.469,3.8680089]
[1771005229219,3.79975226,84.548,84.469,3.8680089]
[1771005229526,3.79975226,84.539,84.469,3.8680089]
[1771005230327,14.45505226,84.529,84.469,3.8680089]
[1771005230528,3.79975226,84.529,84.469,3.8680089]
[1771005231728,10.6567,84.517,84.469,3.8680089]
[1771005232130,3.79975226,84.529,84.469,3.8680089]
[1771005232517,3.79975226,84.515,84.452,3.8680089]
[1771005232722,3.79975226,84.515,84.437,3.8680089]
[1771005232918,10.661,84.483,84.425,10.6682]
[1771005233119,10.661,84.483,84.372,166.0558]
[1771005233120,3.79975226,84.479,84.404,3.8680089]
[1771005234231,10.6639,84.46,84.404,3.8680089]
[1771005234531,3.79975226,84.459,84.398,10.6717]
[1771005234717,8.67183299,84.46,84.403,3.8680089]
[1771005234922,3.79975226,84.477,84.403,3.8680089]
[1771005235331,3.79975226,84.493,84.403,3.8680089]
[1771005235526,3.79975226,84.493,84.433,3.8680089]
[1771005236028,10.66,84.491,84.438,10.6665]
[1771005236623,10.66,84.491,84.438,14.5345089]
[1771005236930,10.66,84.491,84.439,3.8680089]
[1771005237430,3.79975226,84.493,84.44,14.5343089]
[1771005237636,3.79975226,84.493,84.441,3.8680089]
[1771005238134,10.6614,84.48,84.424,3.8680089]
[1771005238730,10.6625,84.471,84.424,3.8680089]
[1771005238922,3.79975226,84.47,84.417,10.6692]
[1771005239230,10.663,84.467,84.408,3.8680089]
[1771005239427,3.79975226,84.47,84.408,3.8680089]
[1771005239632,12.47158525,84.48,84.408,3.8680089]
[1771005239826,3.79975226,84.479,84.408,3.8680089]
[1771005240732,10.6626,84.47,84.419,10.669]
[1771005241129,4.03728923,84.469,84.408,3.8680089]
[1771005241333,4.03728923,84.466,84.411,10.67]
[1771005241723,4.03728923,84.459,84.381,3.78289564]
[1771005242131,4.03728923,84.459,84.394,3.78289564]
[1771005242625,10.6676,84.431,84.377,10.6743]
[1771005242833,10.6676,84.431,84.377,14.45719564]
[1771005243328,4.03728923,84.423,84.364,10.676]
[1771005243529,4.03728923,84.423,84.361,3.78289564]
[1771005244433,10.6688,84.422,84.371,10.675]
[1771005245535,4.03728923,84.423,84.371,10.675]
[1771005246137,4.03728923,84.444,84.361,3.78289564]
[1771005246527,4.03728923,84.439,84.361,3.78289564]
[1771005246831,4.03728923,84.429,84.373,10.6748]
[1771005247130,4.03728923,84.429,84.361,3.78289564]
[1771005247332,10.6662,84.442,84.384,10.6734]
[1771005247828,4.03728923,84.442,84.381,3.78289564]
[1771005248236,10.6663,84.441,84.382,10.6736]
[1771005248432,4.03728923,84.44,84.382,10.6736]
[1771005249137,10.6666,84.439,84.382,10.6736]
[1771005249640,4.03728923,84.458,84.381,3.78289564]
[1771005250132,4.03728923,84.448,84.381,3.78289564]
[1771005250334,4.03728923,84.448,84.353,3.78289564]
[1771005251438,4.03728923,84.436,84.369,3.78289564]
[1771005252338,4.03728923,84.429,84.353,3.78289564]
[1771005252730,4.03728923,84.429,84.363,10.6761]
[1771005252929,4.03728923,84.429,84.364,3.78289564]
[1771005253736,4.03728923,84.409,84.347,3.78289564]
[1771005254741,10.6714,84.401,84.347,3.78289564]
[1771005254937,8.67183299,84.41,84.347,3.78289564]
[1771005254938,4.03728923,84.4,84.347,3.78289564]
[1771005255134,4.03728923,84.4,84.321,3.78289564]
[1771005255344,4.03728923,84.388,84.335,10.6796]
[1771005256636,4.03728923,84.388,84.342,10.6787]
[1771005257744,10.6731,84.387,84.342,10.6787]
[1771005258137,4.03728923,84.388,84.321,3.78289564]
[1771005258342,4.03728923,84.388,84.35,10.6777]
[1771005258535,10.6712,84.402,84.336,3.78289564]
[1771005258840,14.70848923,84.402,84.336,3.78289564]
[1771005259040,4.03728923,84.401,84.349,10.6778]
[1771005259844,4.03728923,84.401,84.34,10.679]
[1771005260544,4.03728923,84.377,84.319,3.78289564]
[1771005261749,10.675,84.373,84.324,10.681]
[1771005262347,4.03728923,84.366,84.324,10.681]
[1771005263352,10.6759,84.365,84.316,10.682]
[1771005263954,14.71318923,84.365,84.316,10.682]
[1771005264753,4.03728923,84.358,84.309,10.683]
[1771005264949,4.03728923,84.358,84.302,3.78289564]
[1771005265352,4.03728923,84.348,84.298,10.6843]
[1771005265551,4.03728923,84.348,84.287,3.78289564]
[1771005266455,4.03728923,84.326,84.282,10.6863]
[1771005266955,10.681,84.325,84.282,10.6863]
[1771005268056,10.681,84.325,84.274,10.6873]
[1771005268258,10.681,84.325,84.269,3.78289564]
[1771005269359,4.03728923,84.315,84.269,3.78289564]
[1771005269560,4.03728923,84.315,84.251,3.78289564]
[1771005270155,4.03728923,84.295,84.234,3.78289564]
[1771005270660,4.03728923,84.29,84.217,3.93727787]
[1771005270961,3.77826908,84.279,84.217,3.93727787]
[1771005271659,10.6873,84.276,84.217,14.63187787]
[1771005271960,3.77826908,84.275,84.217,3.93727787]
[1771005273759,3.77826908,84.275,84.224,10.6937]
[1771005274464,3.77826908,84.275,84.232,10.6927]
[1771005276369,3.77826908,84.275,84.223,10.6938]
[1771005276960,4.05732441,84.27,84.217,3.93727787]
[1771005277765,4.05732441,84.27,84.191,3.90889562]
[1771005278269,14.74532441,84.27,84.217,10.6946]
[1771005278464,4.05732441,84.27,84.213,3.90889562]
[1771005279374,10.6882,84.268,84.216,10.6947]
[1771005279565,4.05732441,84.27,84.213,3.90889562]
[1771005280771,4.05732441,84.27,84.224,10.6937]
[1771005281573,14.74342441,84.285,84.225,3.90889562]
[1771005282273,4.05732441,84.284,84.225,3.90889562]
[1771005282474,10.6863,84.283,84.237,10.692]
[1771005282670,4.05732441,84.3,84.238,3.90889562]
[1771005284075,4.05732441,84.296,84.244,10.6911]
[1771005284264,4.05732441,84.296,84.238,3.90889562]
[1771005285276,14.74212441,84.295,84.251,10.6903]
[1771005285674,4.05732441,84.329,84.238,3.90889562]
[1771005285973,4.05732441,84.308,84.25,14.59929562]
[1771005286578,4.05732441,84.305,84.25,3.90889562]
[1771005287379,4.05732441,84.305,84.264,10.6886]
[1771005287574,4.05732441,84.32,84.251,3.90889562]
[1771005287778,4.05732441,84.338,84.251,3.90889562]
[1771005288178,4.05732441,84.333,84.291,10.6851]
[1771005288378,4.05732441,84.333,84.275,3.90889562]
[1771005288780,4.05732441,84.348,84.29,3.90889562]
[1771005289583,4.05732441,84.348,84.303,10.6837]
[1771005289774,4.05732441,84.348,84.29,3.90889562]
[1771005289976,4.05732441,84.348,84.274,3.90889562]
[1771005291779,4.05732441,84.335,84.274,3.90889562]
[1771005292583,4.05732441,84.335,84.251,94.64]
[1771005292584,4.05732441,84.351,84.292,3.90889562]
[1771005293081,4.05732441,84.35,84.298,10.6843]
[1771005293381,4.05732441,84.35,84.292,3.90889562]
[1771005294381,4.05732441,84.35,84.305,10.6834]
[1771005294578,4.05732441,84.35,84.292,3.90889562]
[1771005295076,4.05732441,84.348,84.305,10.6834]
[1771005297479,4.05732441,84.348,84.312,10.6825]
[1771005297675,4.05732441,84.348,84.292,3.90889562]
[1771005298485,4.05732441,84.348,84.304,10.6836]
[1771005298786,4.05732441,84.348,84.292,3.90889562]
[1771005298981,4.05732441,84.365,84.292,3.90889562]
[1771005299786,4.05732441,84.365,84.318,10.6818]
[1771005300386,4.05732441,84.363,84.318,10.6818]
[1771005300882,4.05732441,84.363,84.326,10.6807]
[1771005301082,4.05732441,84.363,84.305,3.90889562]
[1771005301483,4.05732441,84.363,84.28,8.68959396]
[1771005301484,4.05732441,84.363,84.281,4.02090705]
[1771005301688,3.85954142,84.353,84.294,4.02090705]
[1771005301884,3.85954142,84.367,84.294,4.02090705]
[1771005302386,3.85954142,84.361,84.31,10.6828]
[1771005303185,3.85954142,84.361,84.318,10.6818]
[1771005303382,3.85954142,84.38,84.308,4.02090705]
[1771005303685,3.85954142,84.37,84.325,10.6809]
[1771005304085,3.85954142,84.37,84.324,4.02090705]
[1771005304286,3.85954142,84.386,84.324,4.02090705]
[1771005304582,3.85954142,84.386,84.347,10.6781]
[1771005304787,3.85954142,84.401,84.348,4.02090705]
[1771005304987,3.85954142,84.401,84.331,4.02090705]
[1771005305190,3.85954142,84.381,84.333,10.6799]
[1771005305386,3.85954142,84.381,84.319,4.02090705]
[1771005305991,3.85954142,84.397,84.321,4.02090705]
[1771005306188,3.85954142,84.414,84.321,4.02090705]
[1771005306392,3.85954142,84.414,84.341,4.02090705]
[1771005306695,3.85954142,84.414,84.365,4.02090705]
[1771005306879,3.85954142,84.43,84.365,4.02090705]
[1771005307085,3.85954142,84.43,84.341,4.02090705]
[1771005307492,10.6707,84.407,84.364,10.6759]
[1771005308094,3.85954142,84.413,84.364,10.6759]
[1771005308489,3.85954142,84.413,84.357,10.6769]
[1771005308898,10.6717,84.398,84.355,4.02090705]
[1771005309194,3.85954142,84.397,84.349,10.6779]
[1771005309688,3.85954142,84.397,84.34,4.02090705]
[1771005309689,3.85954142,84.39,84.34,4.02090705]
[1771005309889,3.85954142,84.379,84.301,4.02090705]
[1771005310992,10.6768,84.358,84.315,10.6821]
[1771005312691,10.6768,84.358,84.308,10.6831]
[1771005313397,10.6768,84.358,84.316,10.6821]
[1771005313696,3.85954142,84.364,84.301,4.02090705]
[1771005313893,3.85954142,84.382,84.301,4.02090705]
[1771005314191,3.85954142,84.389,84.333,4.02090705]
[1771005314396,3.85954142,84.389,84.301,4.02090705]
[1771005314891,3.85954142,84.389,84.319,4.02090705]
[1771005315794,10.676,84.365,84.319,4.02090705]
[1771005315991,14.53554142,84.365,84.319,4.02090705]
[1771005316999,10.6779,84.35,84.303,4.02090705]
[1771005317196,3.85954142,84.365,84.303,4.02090705]
[1771005318198,10.6769,84.357,84.312,10.6826]
[1771005318400,3.85954142,84.365,84.303,4.02090705]
[1771005319001,10.678,84.349,84.303,4.02090705]
[1771005319604,10.6787,84.344,84.296,10.6845]
[1771005319795,3.85954142,84.348,84.296,10.6845]
[1771005319992,3.85954142,84.348,84.287,4.02090705]
[1771005320404,10.6802,84.331,84.288,10.6855]
[1771005320702,3.85954142,84.348,84.288,10.6855]
[1771005321604,8.68959396,84.35,84.297,4.02090705]
[1771005321806,3.85954142,84.364,84.297,4.02090705]
[1771005322704,10.6765,84.361,84.313,10.6824]
[1771005322898,3.85954142,84.364,84.297,4.02090705]
[1771005323607,10.6776,84.352,84.312,10.6825]
[1771005323805,3.85954142,84.364,84.312,10.6825]
[1771005324605,10.6774,84.353,84.312,10.6825]
[1771005326005,10.6765,84.36,84.312,10.6825]
[1771005326407,3.85954142,84.364,84.318,10.6817]
[1771005327107,3.85954142,84.364,84.31,10.6828]
[1771005327500,3.85954142,84.349,84.286,4.02090705]
[1771005327705,3.85954142,84.349,84.255,4.02090705]
[1771005328006,3.85954142,84.329,84.255,4.02090705]
[1771005328408,3.85954142,84.329,84.276,10.6871]
[1771005328706,3.85954142,84.349,84.27,4.02090705]
[1771005328906,3.85954142,84.349,84.29,4.02090705]
[1771005329300,10.678,84.348,84.311,10.6826]
[1771005329500,3.85954142,84.349,84.311,10.6826]
[1771005330402,3.85954142,84.371,84.304,4.02090705]
[1771005330905,10.6764,84.362,84.324,10.6811]
[1771005331103,4.07267044,84.361,84.307,3.79043473]
[1771005331307,4.07267044,84.361,84.291,3.79043473]
[1771005331714,4.07267044,84.342,84.3,10.684]
[1771005332013,4.07267044,84.342,84.291,3.79043473]
[1771005332712,10.6808,84.327,84.28,10.6866]
[1771005333414,10.6798,84.335,84.276,3.79043473]
[1771005334114,10.6808,84.326,84.276,3.79043473]
[1771005334314,4.07267044,84.326,84.276,3.79043473]
[1771005335711,10.6821,84.316,84.276,3.79043473]
[1771005336115,10.6821,84.316,84.25,8.6806458]
[1771005336116,4.07267044,84.326,84.261,3.79043473]
[1771005336915,10.6839,84.302,84.262,10.6889]
[1771005338118,10.6839,84.302,84.255,10.6898]
[1771005338719,14.68146884,84.302,84.255,10.6898]
[1771005338906,3.99756884,84.302,84.261,10.689]
[1771005339110,10.683,84.309,84.262,4.07438284]
[1771005339714,10.6821,84.316,84.267,4.07438284]
[1771005339917,3.99756884,84.336,84.267,4.07438284]
[1771005340416,10.6821,84.317,84.267,4.07438284]
[1771005340615,3.99756884,84.336,84.267,4.07438284]
[1771005341112,10.6829,84.31,84.267,4.07438284]
[1771005341312,3.99756884,84.316,84.252,4.07438284]
[1771005341510,3.99756884,84.316,84.213,4.07438284]
[1771005342719,10.6848,84.295,84.249,10.6905]
[1771005344013,3.99756884,84.298,84.255,10.6897]
[1771005344316,3.99756884,84.313,84.256,4.07438284]
[1771005344912,10.6838,84.303,84.26,10.6891]
[1771005345111,3.99756884,84.313,84.256,4.07438284]
[1771005345517,3.99756884,84.313,84.268,10.6881]
[1771005346120,3.99756884,84.313,84.256,4.07438284]
[1771005346121,10.6826,84.312,84.26,10.6891]
[1771005346425,3.99756884,84.313,84.26,10.6891]
[1771005346922,10.6835,84.305,84.256,4.07438284]
[1771005347120,3.99756884,84.313,84.256,4.07438284]
[1771005348117,8.6806458,84.32,84.272,10.6875]
[1771005348419,3.99756884,84.349,84.273,4.07438284]
[1771005349024,3.99756884,84.349,84.29,10.6853]
[1771005349719,3.99756884,84.335,84.271,4.07438284]
[1771005349924,3.99756884,84.329,84.271,4.07438284]
[1771005350525,10.6814,84.322,84.272,10.6876]
[1771005350720,3.99756884,84.344,84.272,4.07438284]
[1771005351223,10.6795,84.337,84.293,10.6849]
[1771005352522,14.67706884,84.337,84.293,10.6849]
[1771005354932,10.6801,84.332,84.293,10.6849]
[1771005355229,3.99756884,84.336,84.293,10.6849]
[1771005355528,3.99756884,84.336,84.284,10.686]
[1771005356126,10.6812,84.324,84.277,10.6869]
[1771005356430,10.6812,84.324,84.278,4.07438284]
[1771005356730,3.99756884,84.323,84.285,10.6859]
[1771005358333,3.99756884,84.33,84.291,10.6852]
[1771005358733,10.6805,84.329,84.291,10.6852]
[1771005360329,10.6792,84.339,84.297,10.6844]
[1771005360529,10.6792,84.339,84.298,4.07438284]
[1771005360828,3.99756884,84.345,84.307,10.6832]
[1771005361037,10.6775,84.353,84.298,4.07438284]
[1771005361231,4.04506385,84.372,84.298,4.07438284]
[1771005361439,10.6742,84.379,84.329,3.8314248]
[1771005362232,4.04506385,84.409,84.331,3.8314248]
[1771005362731,4.04506385,84.409,84.358,10.6767]
[1771005363035,4.04506385,84.409,84.349,3.8314248]
[1771005363335,10.6723,84.394,84.349,3.8314248]
[1771005363539,4.04506385,84.409,84.311,3.8314248]
[1771005364034,10.6711,84.404,84.354,10.6772]
[1771005364637,4.04506385,84.409,84.362,10.6762]
[1771005364836,4.04506385,84.409,84.363,3.8314248]
[1771005365741,4.04506385,84.409,84.364,10.6759]
[1771005365929,4.04506385,84.4,84.345,3.8314248]
[1771005366744,10.6717,84.398,84.35,10.6777]
[1771005367041,14.71676385,84.398,84.35,10.6777]
[1771005367244,14.71676385,84.398,84.345,3.8314248]
[1771005367245,10.6732,84.387,84.34,10.679]
[1771005367542,4.04506385,84.397,84.34,3.8314248]
[1771005368044,4.04506385,84.397,84.353,10.6773]
[1771005369747,4.04506385,84.397,84.344,10.6784]
[1771005370044,4.04506385,84.397,84.34,3.8314248]
[1771005370345,4.04506385,84.397,84.351,14.5089248]
[1771005371043,10.671,84.404,84.357,3.8314248]
[1771005371248,8.6806458,84.41,84.357,3.8314248]
[1771005371948,10.67,84.412,84.367,10.6755]
[1771005372448,10.67,84.412,84.357,3.8314248]
[1771005373747,10.67,84.412,84.366,10.6757]
[1771005375245,4.04506385,84.408,84.358,10.6768]
[1771005375445,4.04506385,84.408,84.331,3.8314248]
[1771005376245,4.04506385,84.387,84.34,10.6789]
[1771005376451,4.04506385,84.387,84.341,3.8314248]
[1771005376852,4.04506385,84.409,84.346,3.8314248]
[1771005377244,8.6806458,84.43,84.346,3.8314248]
[1771005377449,14.71346385,84.425,84.334,21.3595]
[1771005377652,14.71346385,84.425,84.37,3.8314248]
[1771005378048,4.04506385,84.425,84.375,10.6746]
[1771005379855,10.6687,84.422,84.375,10.6746]
[1771005380056,4.04506385,84.425,84.37,3.8314248]
[1771005380248,10.6705,84.408,84.37,3.8314248]
[1771005380445,4.04506385,84.407,84.366,10.6757]
[1771005381858,10.6708,84.406,84.366,10.6757]
[1771005382454,10.6715,84.4,84.358,10.6767]
[1771005382863,4.04506385,84.407,84.364,10.6759]
[1771005383059,10.6709,84.405,84.364,10.6759]
[1771005383361,4.04506385,84.407,84.364,10.6759]
[1771005384857,10.6699,84.413,84.371,3.8314248]
[1771005385062,10.669,84.42,84.371,3.8314248]
[1771005385764,4.04506385,84.424,84.334,21.3595]
[1771005385765,4.04506385,84.424,84.382,14.5051248]
[1771005385962,4.04506385,84.424,84.351,3.8314248]
[1771005386358,10.6708,84.406,84.351,3.8314248]
[1771005386664,4.04506385,84.405,84.351,3.8314248]
[1771005387066,4.04506385,84.405,84.368,10.6755]
[1771005387966,10.6692,84.418,84.375,10.6746]
[1771005388856,10.6692,84.418,84.375,14.5060248]
[1771005390063,10.6701,84.411,84.368,10.6754]
[1771005390465,4.04506385,84.411,84.368,10.6754]
[1771005390871,3.92983421,84.441,84.369,3.75929612]